bitfinex/quotes_BTCUSD_20240821
["timestamp","ask_amount","ask_price","bid_price","bid_amount"]
[1724220840179,0.02931657,59647.0,59646.0,0.6446702]
[1724220840429,0.02931657,59647.0,59646.0,0.9839812]
[1724220841137,0.02931657,59647.0,59646.0,0.6486702]
[1724220841696,0.02931657,59647.0,59646.0,0.9839812]
[1724220842105,0.02931657,59647.0,59646.0,1.3192922]
[1724220842840,0.02731657,59647.0,59646.0,1.3192922]
[1724220843659,0.02631657,59647.0,59646.0,0.9839812]
[1724220843866,0.02731657,59647.0,59646.0,0.9839812]
[1724220844075,0.02631657,59647.0,59646.0,0.9849812]
[1724220844522,0.02731657,59647.0,59646.0,0.9839812]
[1724220844922,0.02731657,59647.0,59646.0,0.9849812]
[1724220845344,0.02731657,59647.0,59646.0,0.6496702]
[1724220845545,0.02731657,59647.0,59646.0,0.6476702]
[1724220845764,0.02631657,59647.0,59646.0,0.3093592]
[1724220846074,0.02631657,59647.0,59646.0,0.6446702]
[1724220846364,0.02631657,59647.0,59646.0,0.3093592]
[1724220846715,0.02831657,59647.0,59646.0,0.1417042]
[1724220846915,0.02631657,59647.0,59646.0,0.3093592]
[1724220847273,0.02831657,59647.0,59646.0,0.6446702]
[1724220847468,0.02631657,59647.0,59646.0,0.6436702]
[1724220847888,0.02631657,59647.0,59646.0,0.6446702]
[1724220848882,0.02831657,59647.0,59646.0,0.6446702]
[1724220849056,0.02831657,59647.0,59646.0,0.6436702]
[1724220849633,0.02931657,59647.0,59646.0,0.6436702]
[1724220850249,0.02931657,59647.0,59646.0,0.3083592]
[1724220851774,0.02931657,59647.0,59646.0,0.1407042]
[1724220851978,0.02931657,59647.0,59646.0,0.0786042]
[1724220852599,0.05557798,59647.0,59646.0,0.0786042]
[1724220854152,0.05557798,59647.0,59646.0,0.9778812]
[1724220854359,0.02931657,59647.0,59646.0,0.9818812]
[1724220854560,0.02931657,59647.0,59646.0,0.9798812]
[1724220854736,0.02931657,59647.0,59646.0,0.9778812]
[1724220854976,0.02831657,59647.0,59646.0,0.9778812]
[1724220855173,0.02631657,59647.0,59646.0,0.9798812]
[1724220855388,0.02731657,59647.0,59646.0,0.9798812]
[1724220855740,0.02631657,59647.0,59646.0,0.9798812]
[1724220855956,0.02831657,59647.0,59646.0,0.9798812]
[1724220856159,0.02831657,59647.0,59646.0,1.3161922]
[1724220856369,0.02831657,59647.0,59646.0,1.3181922]
[1724220856370,0.02631657,59647.0,59646.0,1.3181922]
[1724220858383,0.02631657,59647.0,59646.0,1.3171922]
[1724220858830,0.02631657,59647.0,59646.0,1.3181922]
[1724220859255,0.02731657,59647.0,59646.0,1.3171922]
[1724220859682,0.02831657,59647.0,59646.0,1.3181922]
[1724220874759,0.02831657,59647.0,59646.0,1.3141922]
[1724220874921,0.02831657,59647.0,59646.0,1.3161922]
[1724220875365,0.05257579,59647.0,59646.0,1.3151922]
[1724220875562,0.02631657,59647.0,59646.0,1.3151922]
[1724220875768,0.02631657,59647.0,59646.0,1.3161922]
[1724220875769,0.02731657,59647.0,59646.0,1.3161922]
[1724220876398,0.05357551,59647.0,59646.0,1.3161922]
[1724220876609,0.05357551,59647.0,59646.0,1.3181922]
[1724220877025,0.05357551,59647.0,59646.0,0.0019042]
[1724220877441,0.06513306,59647.0,59646.0,0.0019042]
[1724220877850,0.06413306,59647.0,59646.0,0.0009042]
[1724220878264,0.06513306,59647.0,59646.0,0.0019042]
[1724220878672,0.06513306,59647.0,59646.0,0.0009042]
[1724220878806,0.06413306,59647.0,59646.0,0.0009042]
[1724220879006,0.06513306,59647.0,59646.0,0.0019042]
[1724220883889,0.05357551,59647.0,59646.0,1.3270922]
[1724220884217,0.02731657,59647.0,59646.0,1.3270922]
[1724220886051,0.02731657,59647.0,59646.0,1.3230922]
[1724220886474,0.02631657,59647.0,59646.0,1.3230922]
[1724220886693,0.02631657,59647.0,59646.0,1.2591922]
[1724220887075,0.02631657,59647.0,59646.0,1.2581922]
[1724220887266,0.02631657,59647.0,59646.0,0.5865702]
[1724220887449,0.06135694,59647.0,59646.0,0.5038702]
[1724220887704,0.06235694,59647.0,59646.0,0.5058702]
[1724220887905,0.05457528,59647.0,59646.0,0.5068702]
[1724220888117,0.05357528,59647.0,59646.0,0.9246812]
[1724220888247,0.05257528,59647.0,59646.0,0.9246812]
[1724220888450,0.05557528,59647.0,59646.0,0.5843702]
[1724220888854,0.05257528,59647.0,59646.0,0.5843702]
[1724220889059,0.05257528,59647.0,59646.0,0.5873702]
[1724220889262,0.05257528,59647.0,59646.0,0.5903702]
[1724220889460,0.05257528,59647.0,59646.0,0.5883702]
[1724220889661,0.02631657,59647.0,59646.0,0.5903702]
[1724220890277,0.05257562,59647.0,59646.0,0.9256812]
[1724220890678,0.05257562,59647.0,59646.0,0.9236812]
[1724220891049,0.02631657,59647.0,59646.0,1.3222922]
[1724220891816,0.02631657,59647.0,59646.0,1.3202922]
[1724220892018,0.02631657,59647.0,59646.0,1.3222922]
[1724220893159,0.02631657,59647.0,59646.0,1.3202922]
[1724220894368,0.02731657,59647.0,59646.0,1.3202922]
[1724220894761,0.02631657,59647.0,59646.0,1.3202922]
[1724220894966,0.02631657,59647.0,59646.0,1.3222922]
[1724220895566,0.02631657,59647.0,59646.0,1.3202922]
[1724220895753,0.02731657,59647.0,59646.0,1.3559422]
[1724220896158,0.02831657,59647.0,59646.0,1.3559422]
[1724220896358,0.02731657,59647.0,59646.0,1.3539422]
[1724220896938,0.02831657,59647.0,59646.0,1.3559422]
[1724220897331,0.02731657,59647.0,59646.0,1.3559422]
[1724220897777,0.02831657,59647.0,59646.0,1.3609422]
[1724220898185,0.02731657,59647.0,59646.0,1.3589422]
[1724220898386,0.02731657,59647.0,59646.0,1.3609422]
[1724220898646,0.02731657,59647.0,59646.0,1.3559422]
[1724220899272,0.02731657,59647.0,59646.0,1.6912532]
[1724220899486,0.02831657,59647.0,59646.0,1.74633051]
[1724220899899,0.02789209,59647.0,59646.0,1.77136917]
[1724220900106,0.000822,59671.0,59670.0,1.178116]
[1724220900315,0.02707154,59671.0,59670.0,0.98244]
[1724220900521,0.000822,59671.0,59670.0,1.317616]
[1724220901164,0.000822,59671.0,59670.0,1.351266]
[1724220901582,0.015822,59671.0,59670.0,1.321616]
[1724220901800,0.014822,59671.0,59670.0,1.318616]
[1724220902023,0.000822,59671.0,59670.0,1.317616]
[1724220902435,0.001822,59671.0,59670.0,1.354266]
[1724220903100,0.002822,59671.0,59670.0,1.364266]
[1724220903948,0.001822,59671.0,59670.0,1.361266]
[1724220904373,0.002822,59671.0,59670.0,1.369266]
[1724220904580,0.0281264,59671.0,59670.0,1.361266]
[1724220904981,0.0291264,59671.0,59670.0,1.371266]
[1724220907297,0.0291264,59671.0,59670.0,0.85894]
[1724220907493,0.0291264,59671.0,59670.0,0.86294]
[1724220907764,0.0291264,59671.0,59670.0,0.021]
[1724220907894,0.0291264,59671.0,59670.0,0.02]
[1724220907895,0.0911264,59671.0,59670.0,0.02]
[1724220908102,0.16652124,59671.0,59670.0,0.02]
[1724220908422,0.15754089,59671.0,59666.0,0.167598]
[1724220908596,0.1553264,59671.0,59667.0,0.167594]
[1724220908828,0.1563264,59671.0,59670.0,0.009]
[1724220909045,0.15754089,59671.0,59663.0,0.167605]
[1724220909284,0.04208944,59670.0,59660.0,0.81333]
[1724220909427,0.01583629,59670.0,59663.0,0.167606]
[1724220909629,0.01563459,59670.0,59660.0,0.4771]
[1724220909837,0.062,59668.0,59660.0,0.167614]
[1724220910102,0.10868469,59668.0,59660.0,0.167614]
[1724220910307,0.10868469,59668.0,59661.0,0.167613]
[1724220910512,0.062,59668.0,59664.0,0.167604]
[1724220910699,0.062,59668.0,59665.0,0.167601]
[1724220911148,0.072,59668.0,59661.0,0.335223]
[1724220911349,0.072,59668.0,59664.0,0.167604]
[1724220911766,0.082,59668.0,59664.0,0.168604]
[1724220911978,0.062,59668.0,59664.0,0.167604]
[1724220912195,0.062,59668.0,59665.0,0.167602]
[1724220912401,0.062,59668.0,59663.0,0.001]
[1724220912402,0.071,59668.0,59663.0,0.168605]
[1724220912588,0.071,59668.0,59663.0,0.335214]
[1724220912834,0.071,59668.0,59665.0,0.167602]
[1724220913047,0.078,59668.0,59665.0,0.167602]
[1724220913257,0.078,59668.0,59667.0,0.167596]
[1724220913258,0.016,59668.0,59667.0,0.167596]
[1724220913640,0.007,59668.0,59667.0,0.167596]
[1724220913797,0.015,59668.0,59667.0,0.167596]
[1724220914197,0.0933264,59671.0,59667.0,0.167596]
[1724220914470,0.008,59668.0,59667.0,0.336193]
[1724220914585,0.015,59668.0,59667.0,0.838982]
[1724220915194,0.008,59668.0,59667.0,0.838982]
[1724220915401,0.008,59668.0,59667.0,0.840982]
[1724220915601,0.008,59668.0,59667.0,0.841982]
[1724220916105,0.008,59668.0,59667.0,0.838982]
[1724220916544,0.008,59668.0,59667.0,1.25321596]
[1724220917438,0.008,59668.0,59667.0,0.91902296]
[1724220917439,0.015,59668.0,59667.0,0.91902296]
[1724220917637,0.015,59668.0,59667.0,0.50102996]
[1724220917840,0.015,59668.0,59667.0,0.001]
[1724220917841,0.08719484,59668.0,59667.0,0.001]
[1724220919100,0.0767,59668.0,59667.0,0.001]
[1724220919508,0.015,59668.0,59667.0,0.001]
[1724220919706,0.015,59668.0,59667.0,0.503789]
[1724220919916,0.015,59668.0,59667.0,0.583589]
[1724220920146,0.015,59668.0,59667.0,0.916782]
[1724220920755,0.0271264,59671.0,59670.0,0.502764]
[1724220920952,0.0271264,59671.0,59670.0,0.503764]
[1724220921778,0.0271264,59671.0,59670.0,0.502764]
[1724220922182,0.0281264,59671.0,59670.0,0.502764]
[1724220922543,0.0281264,59671.0,59668.0,0.168591]
[1724220922742,0.0311264,59671.0,59669.0,0.16759]
[1724220923833,0.0301264,59671.0,59668.0,0.001]
[1724220924093,0.02625233,59670.0,59668.0,0.168593]
[1724220924291,0.01182007,59669.0,59668.0,0.167593]
[1724220924494,0.0380724,59669.0,59668.0,0.167593]
[1724220924702,0.0380724,59669.0,59667.0,0.0009042]
[1724220924904,0.02625233,59668.0,59667.0,0.0009042]
[1724220925081,0.01300208,59668.0,59667.0,0.1685002]
[1724220926041,0.0271264,59671.0,59667.0,0.1685002]
[1724220926241,0.02625261,59670.0,59667.0,0.1685002]
[1724220927263,0.02625261,59670.0,59668.0,0.001]
[1724220927648,0.02625261,59670.0,59669.0,0.167591]
[1724220928144,0.02825261,59670.0,59669.0,0.581173]
[1724220928348,0.02625261,59670.0,59669.0,0.581173]
[1724220928757,0.03725261,59670.0,59669.0,0.581173]
[1724220928977,0.02625261,59670.0,59669.0,0.918355]
[1724220929172,0.02625261,59670.0,59669.0,0.581173]
[1724220930199,0.02625261,59670.0,59669.0,0.167591]
[1724220930340,0.10237271,59670.0,59667.0,0.5036902]
[1724220930543,0.02625261,59669.0,59667.0,0.1684982]
[1724220930975,0.04658472,59669.0,59667.0,0.1684982]
[1724220931177,0.02625261,59668.0,59667.0,0.1684982]
[1724220931814,0.02625261,59668.0,59667.0,0.0009042]
[1724220932385,0.03125261,59668.0,59667.0,0.0009042]
[1724220933019,0.03525261,59668.0,59667.0,0.0009042]
[1724220933220,0.05741793,59668.0,59667.0,0.0009042]
[1724220933793,0.05241793,59668.0,59667.0,0.0009042]
[1724220934403,0.11941793,59668.0,59667.0,0.0009042]
[1724220935010,0.11041793,59668.0,59667.0,0.0009042]
[1724220935164,0.11341793,59668.0,59667.0,0.0009042]
[1724220935364,0.11841793,59668.0,59667.0,0.0009042]
[1724220935569,0.17961793,59668.0,59667.0,0.0009042]
[1724220935767,0.47201793,59668.0,59667.0,0.0009042]
[1724220936173,0.56901793,59668.0,59667.0,0.0009042]
[1724220936376,0.59201793,59668.0,59667.0,0.0009042]
[1724220936608,0.59983993,59668.0,59667.0,0.0019042]
[1724220936936,0.59483993,59668.0,59667.0,0.0019042]
[1724220937337,0.61286463,59668.0,59667.0,0.0019042]
[1724220937566,0.60486463,59668.0,59667.0,0.0019042]
[1724220937938,0.61186463,59668.0,59667.0,0.0009042]
[1724220938139,0.62586463,59668.0,59667.0,0.0019042]
[1724220938764,0.61186463,59668.0,59667.0,0.0009042]
[1724220939190,0.61186463,59668.0,59667.0,0.0019042]
[1724220939650,0.59786463,59668.0,59667.0,0.0009042]
[1724220940154,0.56567461,59668.0,59667.0,0.0009042]
[1724220941059,0.57067461,59668.0,59667.0,0.0009042]
[1724220941211,0.27827461,59668.0,59667.0,0.0009042]
[1724220941413,0.17827461,59668.0,59667.0,0.0009042]
[1724220941620,0.16427461,59668.0,59667.0,0.0009042]
[1724220942019,0.17827461,59668.0,59667.0,0.0009042]
[1724220942446,0.13689691,59668.0,59667.0,0.0009042]
[1724220943454,0.11627461,59668.0,59667.0,0.0009042]
[1724220943658,0.21627461,59668.0,59667.0,0.0009042]
[1724220944373,0.15507461,59668.0,59667.0,0.0009042]
[1724220945036,0.05507461,59668.0,59667.0,0.0009042]
[1724220945169,0.04107461,59668.0,59667.0,0.0009042]
[1724220945368,0.02707461,59668.0,59667.0,0.0009042]
[1724220945689,0.05294647,59668.0,59667.0,0.0009042]
[1724220945888,0.06694647,59668.0,59667.0,0.0009042]
[1724220946047,0.05294647,59668.0,59667.0,0.0009042]
[1724220946255,0.03994647,59668.0,59667.0,0.0009042]
[1724220946608,0.05194647,59668.0,59667.0,0.0009042]
[1724220947013,0.03907461,59668.0,59667.0,0.0009042]
[1724220947881,0.03207461,59668.0,59667.0,0.0009042]
[1724220948084,0.02707461,59668.0,59667.0,0.0009042]
[1724220948278,0.03407461,59668.0,59667.0,0.0009042]
[1724220948509,0.03907461,59668.0,59667.0,0.0009042]
[1724220948711,0.03907461,59668.0,59667.0,0.5841932]
[1724220948712,0.03207461,59668.0,59667.0,0.5841932]
[1724220948917,0.02707461,59668.0,59667.0,0.2460002]
[1724220949101,0.03407461,59668.0,59667.0,0.2460002]
[1724220949307,0.03207461,59668.0,59667.0,0.2460002]
[1724220949660,0.03107461,59668.0,59667.0,0.2460002]
[1724220950870,0.02707461,59668.0,59667.0,0.2460002]
[1724220951249,0.02707461,59668.0,59667.0,0.0009042]
[1724220951457,0.03007461,59668.0,59667.0,0.0009042]
[1724220951639,0.04040647,59668.0,59667.0,0.0009042]
[1724220952015,0.03740647,59668.0,59667.0,0.0009042]
[1724220952230,0.03640647,59668.0,59667.0,0.0009042]
[1724220952448,0.04340647,59668.0,59667.0,0.0009042]
[1724220952638,0.11040647,59668.0,59667.0,0.0009042]
[1724220952861,0.10340647,59668.0,59667.0,0.0009042]
[1724220953064,0.12471741,59668.0,59667.0,0.0009042]
[1724220953269,0.06271741,59668.0,59667.0,0.0009042]
[1724220953595,0.06138555,59668.0,59667.0,0.0009042]
[1724220954863,0.05338555,59668.0,59667.0,0.0009042]
[1724220955089,0.06138555,59668.0,59667.0,0.0009042]
[1724220955292,0.06938555,59668.0,59667.0,0.0009042]
[1724220955676,0.05338555,59668.0,59667.0,0.0009042]
[1724220956093,0.06504851,59668.0,59667.0,0.0009042]
[1724220956363,0.06938555,59668.0,59667.0,0.0009042]
[1724220957647,0.05938555,59668.0,59667.0,0.0009042]
[1724220958293,0.05938555,59668.0,59667.0,0.0019042]
[1724220958459,0.06738555,59668.0,59667.0,0.6491932]
[1724220958863,0.06738555,59668.0,59667.0,0.6481932]
[1724220959088,0.06738555,59668.0,59667.0,0.0009042]
[1724220959238,0.06738555,59668.0,59667.0,0.1685002]
[1724220959444,0.08074851,59668.0,59667.0,0.1685002]
[1724220959927,0.08074851,59668.0,59667.0,0.0009042]
[1724220960330,0.06738555,59668.0,59667.0,0.0009042]
[1724220961012,0.19048555,59668.0,59667.0,0.0009042]
[1724220961369,0.31348555,59668.0,59667.0,0.0009042]
[1724220961570,0.29048555,59668.0,59667.0,0.0009042]
[1724220961775,0.27648555,59668.0,59667.0,0.0009042]
[1724220961974,0.31229851,59668.0,59667.0,0.0009042]
[1724220962175,0.32329851,59668.0,59667.0,0.0009042]
[1724220962401,0.31229851,59668.0,59667.0,0.0009042]
[1724220962623,0.27648555,59668.0,59667.0,0.0009042]
[1724220962795,0.30448555,59668.0,59667.0,0.0009042]
[1724220963457,0.29048555,59668.0,59667.0,0.0009042]
[1724220963665,0.31348555,59668.0,59667.0,0.0009042]
[1724220963995,0.32748555,59668.0,59667.0,0.0009042]
[1724220964199,0.36039851,59668.0,59667.0,0.0009042]
[1724220964404,0.30448555,59668.0,59667.0,0.0009042]
[1724220964804,0.29048555,59668.0,59667.0,0.0009042]
[1724220965008,0.30448555,59668.0,59667.0,0.0009042]
[1724220965181,0.29048555,59668.0,59667.0,0.0009042]
[1724220965392,0.27648555,59668.0,59667.0,0.0009042]
[1724220965589,0.22848555,59668.0,59667.0,0.0009042]
[1724220965749,0.25629851,59668.0,59667.0,0.0009042]
[1724220965944,0.24229851,59668.0,59667.0,0.0009042]
[1724220966234,0.25629851,59668.0,59667.0,0.0009042]
[1724220966438,0.27029851,59668.0,59667.0,0.0009042]
[1724220966588,0.25629851,59668.0,59667.0,0.0009042]
[1724220967037,0.24229851,59668.0,59667.0,0.0009042]
[1724220967334,0.30429851,59668.0,59667.0,0.0009042]
[1724220967620,0.32729851,59668.0,59667.0,0.0009042]
[1724220968040,0.34129851,59668.0,59667.0,0.0009042]
[1724220968182,0.32729851,59668.0,59667.0,0.0009042]
[1724220968377,0.35529851,59668.0,59667.0,0.0009042]
[1724220968792,0.34129851,59668.0,59667.0,0.0009042]
[1724220969552,0.3514065,59668.0,59667.0,0.0009042]
[1724220970152,0.3654065,59668.0,59667.0,0.0009042]
[1724220970980,0.3514065,59668.0,59667.0,0.0009042]
[1724220971396,0.3654065,59668.0,59667.0,0.0009042]
[1724220971536,0.3374065,59668.0,59667.0,0.0009042]
[1724220971746,0.3514065,59668.0,59667.0,0.0009042]
[1724220971952,0.3654065,59668.0,59667.0,0.0009042]
[1724220973160,0.5330005,59668.0,59667.0,0.0009042]
[1724220974777,0.5190005,59668.0,59667.0,0.0009042]
[1724220975394,0.5050005,59668.0,59667.0,0.0009042]
[1724220975615,0.5190005,59668.0,59667.0,0.0009042]
[1724220975815,0.5330005,59668.0,59667.0,0.0009042]
[1724220976005,0.5190005,59668.0,59667.0,0.0009042]
[1724220976180,0.8541885,59668.0,59667.0,0.00013204]
[1724220976383,0.0616,59662.0,59651.0,0.1]
[1724220976584,0.2924,59652.0,59651.0,0.1]
[1724220976797,0.41865261,59652.0,59651.0,0.1]
[1724220976994,0.44497017,59652.0,59651.0,0.1]
[1724220977756,0.59067017,59652.0,59651.0,0.1]
[1724220977999,0.64973719,59652.0,59651.0,0.1]
[1724220978223,0.58773719,59652.0,59651.0,0.1]
[1724220978857,0.60173719,59652.0,59651.0,0.1]
[1724220979407,0.61573719,59652.0,59651.0,0.1]
[1724220979962,0.55503719,59652.0,59651.0,0.1]
[1724220980168,0.55503719,59652.0,59651.0,0.2386]
[1724220980169,0.18057017,59652.0,59651.0,0.2386]
[1724220980531,0.18057017,59652.0,59651.0,0.406241]
[1724220980750,0.18057017,59652.0,59651.0,0.2386]
[1724220981375,0.08057017,59652.0,59651.0,0.407241]
[1724220981547,0.05431756,59652.0,59651.0,1.077807]
[1724220981699,0.05431756,59652.0,59651.0,1.079807]
[1724220981902,0.05431756,59652.0,59651.0,1.081807]
[1724220982311,0.04031756,59652.0,59651.0,1.41709]
[1724220982721,0.03531756,59652.0,59651.0,1.41709]
[1724220983156,0.02631756,59652.0,59651.0,1.41709]
[1724220983564,0.02731756,59652.0,59651.0,1.4179942]
[1724220984823,0.02831756,59652.0,59651.0,1.4189942]
[1724220985059,0.02731756,59652.0,59651.0,1.4189942]
[1724220985745,0.02831756,59652.0,59651.0,1.4199942]
[1724220988192,0.02831756,59652.0,59651.0,1.0847112]
[1724220989421,0.02731756,59652.0,59651.0,1.0837112]
[1724220989620,0.02631756,59652.0,59651.0,1.0827112]
[1724220989821,0.02731756,59652.0,59651.0,1.0837112]
[1724220992391,0.02711585,59652.0,59651.0,1.0837112]
[1724220994599,0.02611585,59652.0,59651.0,1.0827112]
[1724220994956,0.02711585,59652.0,59651.0,1.0837112]
[1724220998605,0.02611585,59652.0,59651.0,1.0827112]
[1724220998985,0.02611585,59652.0,59651.0,1.0837112]
[1724220999191,0.02611585,59652.0,59651.0,1.7542772]
[1724220999389,0.02611585,59652.0,59651.0,1.8542772]
[1724220999591,0.02611585,59652.0,59651.0,1.8879272]
[1724220999825,0.02611585,59652.0,59651.0,1.93790199]
[1724221000033,0.02611585,59652.0,59651.0,1.89815442]
[1724221000864,0.02611585,59652.0,59651.0,1.89715442]
[1724221001073,0.02611585,59652.0,59651.0,2.23343742]
[1724221001277,0.000822,59667.0,59666.0,1.322596]
[1724221001840,0.000822,59667.0,59666.0,1.355246]
[1724221002258,0.000822,59667.0,59666.0,1.354246]
[1724221002884,0.001822,59667.0,59666.0,1.356246]
[1724221003500,0.02812839,59667.0,59666.0,1.356246]
[1724221003895,0.02712839,59667.0,59666.0,1.354246]
[1724221004328,0.02812839,59667.0,59666.0,1.357246]
[1724221004531,0.02712839,59667.0,59666.0,1.354246]
[1724221004674,0.02712839,59667.0,59666.0,1.360246]
[1724221004675,0.02812839,59667.0,59666.0,1.360246]
[1724221004887,0.02912839,59667.0,59666.0,1.363246]
[1724221005318,0.02812839,59667.0,59666.0,1.357246]
[1724221005640,0.02912839,59667.0,59666.0,1.363246]
[1724221007070,0.02812839,59667.0,59666.0,1.360246]
[1724221007271,0.02812839,59667.0,59666.0,1.357246]
[1724221007532,0.02812839,59667.0,59666.0,1.363246]
[1724221007752,0.02912839,59667.0,59666.0,1.363246]
[1724221008889,0.02812839,59667.0,59666.0,1.357246]
[1724221009108,0.02812839,59667.0,59666.0,0.988397]
[1724221009311,0.02912839,59667.0,59666.0,0.993397]
[1724221009542,0.02912839,59667.0,59666.0,0.994397]
[1724221009974,0.02812839,59667.0,59666.0,0.925597]
[1724221010353,0.02912839,59667.0,59666.0,0.928597]
[1724221010512,0.02812839,59667.0,59666.0,0.918597]
[1724221010719,0.02712839,59667.0,59666.0,0.918597]
[1724221010943,0.02912839,59667.0,59666.0,0.926597]
[1724221011339,0.02912839,59667.0,59666.0,0.921597]
[1724221011340,0.02812839,59667.0,59666.0,0.921597]
[1724221011765,0.02812839,59667.0,59666.0,0.840997]
[1724221011940,0.10509563,59667.0,59666.0,0.008]
[1724221012562,0.02912839,59667.0,59666.0,0.985897]
[1724221012776,0.02912839,59667.0,59666.0,1.321096]
[1724221013201,0.02812839,59667.0,59666.0,1.318096]
[1724221013693,0.03212839,59667.0,59666.0,1.318096]
[1724221013921,0.02712839,59667.0,59666.0,1.313096]
[1724221014097,0.02912839,59667.0,59666.0,1.313096]
[1724221014645,0.02712839,59667.0,59666.0,1.316096]
[1724221014887,0.02912839,59667.0,59666.0,1.321096]
[1724221015093,0.02812839,59667.0,59666.0,1.318096]
[1724221015544,0.02812839,59667.0,59666.0,1.314096]
[1724221015545,0.02712839,59667.0,59666.0,1.314096]
[1724221015901,0.02712839,59667.0,59666.0,1.317096]
[1724221016099,0.02812839,59667.0,59666.0,1.317096]
[1724221016304,0.02912839,59667.0,59666.0,1.320096]
[1724221020038,0.000822,59668.0,59666.0,1.320096]
[1724221020039,0.000821,59687.0,59676.0,0.001]
[1724221020272,0.000821,59687.0,59676.0,0.94316407]
[1724221020486,0.000821,59687.0,59676.0,2.38473607]
[1724221020686,0.000821,59687.0,59676.0,2.40773607]
[1724221021702,0.001821,59677.0,59676.0,2.44435607]
[1724221022127,0.001821,59677.0,59676.0,2.44635607]
[1724221022342,0.0291194,59677.0,59676.0,2.45735607]
[1724221022757,0.0291194,59677.0,59676.0,2.45835607]
[1724221023169,0.0291194,59677.0,59676.0,2.45735607]
[1724221024203,0.0291194,59677.0,59676.0,2.49640275]
[1724221024825,0.0291194,59677.0,59676.0,2.48647507]
[1724221025028,0.0291194,59677.0,59676.0,2.482125]
[1724221025160,0.0291194,59677.0,59676.0,2.146982]
[1724221025582,0.0291194,59677.0,59676.0,1.831582]
[1724221026613,0.0291194,59677.0,59676.0,1.639863]
[1724221026820,0.0291194,59677.0,59676.0,1.2711]
[1724221028129,0.0291194,59677.0,59676.0,1.192]
[1724221028332,0.0291194,59677.0,59676.0,1.898443]
[1724221028532,0.0291194,59677.0,59676.0,1.962743]
[1724221030362,0.0291194,59677.0,59676.0,1.670343]
[1724221034166,0.0291194,59677.0,59676.0,1.2709]
[1724221036629,0.0291194,59677.0,59676.0,1.6277]
[1724221037078,0.0291194,59677.0,59676.0,1.962843]
[1724221039247,0.0291194,59677.0,59676.0,1.670443]
[1724221041463,0.0291194,59677.0,59676.0,1.3353]
[1724221042075,0.0291194,59677.0,59676.0,1.670443]
[1724221042266,0.0291194,59677.0,59676.0,1.962843]
[1724221042669,0.000821,59687.0,59686.0,1.585087]
[1724221042831,0.000821,59687.0,59686.0,1.937887]
[1724221043264,0.02711973,59687.0,59686.0,1.937887]
[1724221044467,0.02711973,59687.0,59686.0,1.941887]
[1724221045227,0.02711973,59687.0,59686.0,1.654487]
[1724221045444,0.02711973,59687.0,59686.0,1.594087]
[1724221047809,0.02711973,59687.0,59686.0,1.183801]
[1724221051535,0.16461973,59687.0,59686.0,0.512629]
[1724221051662,0.20732581,59687.0,59686.0,0.512629]
[1724221051862,0.16461973,59687.0,59686.0,0.848715]
[1724221052063,0.16461973,59687.0,59686.0,0.513629]
[1724221052751,0.16461973,59687.0,59686.0,0.178543]
[1724221052752,0.19086315,59687.0,59686.0,0.178543]
[1724221052980,0.19086315,59687.0,59686.0,0.173543]
[1724221053179,0.19300044,59687.0,59686.0,0.510629]
[1724221053397,0.19086315,59687.0,59686.0,0.510629]
[1724221053544,0.19300044,59687.0,59686.0,0.508629]
[1724221053720,0.19300044,59687.0,59686.0,0.504629]
[1724221053926,0.19300044,59687.0,59686.0,0.507629]
[1724221054321,0.19300044,59687.0,59686.0,0.504629]
[1724221054526,0.19400044,59687.0,59686.0,0.504629]
[1724221055713,0.19400044,59687.0,59686.0,0.505629]
[1724221056129,0.19400044,59687.0,59686.0,0.504629]
[1724221056534,0.19400044,59687.0,59686.0,0.506629]
[1724221056730,0.19300044,59687.0,59686.0,0.506629]
[1724221059204,0.19300044,59687.0,59686.0,0.504629]
[1724221059613,0.19300044,59687.0,59686.0,0.507629]
[1724221060208,0.21230048,59687.0,59686.0,0.170543]
[1724221060598,0.21230048,59687.0,59686.0,0.172543]
[1724221060940,0.21230048,59687.0,59686.0,0.170543]
[1724221061140,0.21230048,59687.0,59686.0,0.172543]
[1724221061602,0.21230048,59687.0,59686.0,0.169543]
[1724221062005,0.22984856,59687.0,59686.0,0.172543]
[1724221063169,0.20354983,59687.0,59686.0,0.005]
[1724221063378,0.18600175,59687.0,59686.0,0.005]
[1724221063573,0.28700175,59687.0,59686.0,0.005]
[1724221064385,0.28700175,59687.0,59686.0,0.003]
[1724221064790,0.1412,59686.0,59675.0,0.167573]
[1724221065075,0.1429,59683.0,59675.0,0.167573]
[1724221065191,0.02624342,59682.0,59675.0,0.167573]
[1724221065389,0.1429,59680.0,59674.0,0.167576]
[1724221065733,0.3924,59685.0,59672.0,0.0009042]
[1724221065734,0.145,59678.0,59672.0,0.0009042]
[1724221065950,0.17124342,59677.0,59672.0,0.0009042]
[1724221066107,0.17124342,59677.0,59675.0,0.001]
[1724221066108,0.09084342,59676.0,59675.0,0.001]
[1724221066309,0.22161817,59676.0,59675.0,0.001]
[1724221066713,0.22161817,59676.0,59672.0,0.0009042]
[1724221066917,0.02624342,59675.0,59672.0,0.0009042]
[1724221067542,0.15070816,59674.0,59672.0,0.0009042]
[1724221067823,0.02624342,59673.0,59672.0,0.0009042]
[1724221068203,0.09245158,59673.0,59672.0,0.0029042]
[1724221068419,0.09245158,59673.0,59672.0,0.0019042]
[1724221068615,0.09245158,59673.0,59672.0,0.0009042]
[1724221068810,0.09245158,59673.0,59672.0,0.0019042]
[1724221068962,0.11704558,59673.0,59672.0,0.0009042]
[1724221069188,0.11904558,59673.0,59672.0,0.0009042]
[1724221069386,0.12404558,59673.0,59672.0,0.0019042]
[1724221072754,0.09945158,59673.0,59672.0,0.0029042]
[1724221073108,0.0995152,59673.0,59672.0,0.0029042]
[1724221073314,0.09740704,59673.0,59672.0,0.0029042]
[1724221073511,0.09740704,59673.0,59672.0,0.0019042]
[1724221074926,0.09720536,59673.0,59672.0,0.0019042]
[1724221080155,0.03330704,59673.0,59672.0,0.0019042]
[1724221081037,0.03330704,59673.0,59672.0,0.1694862]
[1724221081433,0.03330704,59673.0,59672.0,0.0019042]
[1724221081908,0.03330704,59673.0,59672.0,0.9155162]
[1724221082415,0.03330704,59673.0,59672.0,0.9165162]
[1724221083479,0.03330704,59673.0,59672.0,0.9175162]
[1724221084752,0.03330704,59673.0,59672.0,0.5823512]
[1724221085134,0.03330704,59673.0,59672.0,0.9175162]
[1724221085555,0.03330704,59673.0,59672.0,0.5823512]
[1724221086151,0.03330704,59673.0,59672.0,0.9175162]
[1724221086644,0.03330704,59673.0,59672.0,0.5823512]
[1724221086985,0.03330704,59673.0,59672.0,0.9799162]